Cogmind - Beta 14 @@@ ROGUE MODE // 2024.10.22 @ 17:43:25 Player: YA-B01 Result: Escaped! Performance ------------- Evolutions (9) 4500 Regions Visited (26) 5200 Robots Destroyed (263) 1315 Value Destroyed (15489) 15489 Prototype IDs (49) 980 Alien Tech Used (0) 0 Bonus (14271) 14271 TOTAL SCORE: 41755 Bonus ------- High Alert Combat Kills 2114 Follower Combat Kills 4569 Entered Garrisons 1600 Used RIF Installer 3500 Aligned with FarCom 300 Win 3000 Friendly Fire -812 Cogmind --------- Core Integrity 1153/1600 Matter 299/300 Energy 295/300 System Corruption 3% Temperature Cool (10) Movement Hovering (49) Location To Epsilon Eridani Parts ------- > --- POWER (2) -------- Micro Antimatter Reactor Micro Antimatter Reactor > --- PROPULSION (6) --- Compact Wheel Improved Antigrav System Improved Antigrav System Improved Antigrav System Improved Antigrav System Improved Antigrav System > --- UTILITY (14) ----- Advanced Heat Sink Small Battery Advanced Targeting Computer Advanced Target Analyzer Advanced Target Analyzer Improved Core Shielding Backup Plating VII Backup Plating VII Graphene Brace Relay Coupler [Swarmer] (31) Relay Coupler [Proto] (9) Improved System Guard > --- WEAPON (3) ------- Dispersion Rifle Enhanced Nova Cannon Linear Accelerator > --- INVENTORY (5) ---- Gamma Rifle Enhanced Quantum Rifle HERF Cannon Improved Remote Datajack Improved Plasma Cutter Peak State ------------ > --- POWER ------------ Micro Antimatter Reactor Micro Antimatter Reactor > --- PROPULSION ------- Compact Wheel Improved Antigrav System Improved Antigrav System Improved Antigrav System Improved Antigrav System Improved Antigrav System > --- UTILITY ---------- Advanced Heat Sink Small Battery Advanced Targeting Computer Advanced Target Analyzer Advanced Target Analyzer Improved Core Shielding Backup Plating VII Backup Plating VII Graphene Brace Relay Coupler [Swarmer] Relay Coupler [Hunter] Relay Coupler [Proto] Improved System Guard > --- WEAPON ----------- Dispersion Rifle Enhanced Quantum Rifle Enhanced Nova Cannon > --- INVENTORY -------- Gamma Rifle HERF Cannon Linear Accelerator Improved Remote Datajack Improved Plasma Cutter [Rating: 153] Favorites ----------- Power Improved Deuterium Engine Engine Improved Deuterium Engine Power Core Light Nuclear Core Reactor Light Antimatter Reactor Propulsion Aluminum Leg Treads Light Treads Leg Aluminum Leg Wheel Wheel Hover Unit Improved Antigrav System Flight Unit Impulse Thruster Array Utility Large Storage Unit Device Improved Heat Sink Storage Large Storage Unit Processor Improved System Guard Hackware Relay Coupler [Sentry] Protection Improved Light Armor Plating Weapon Makeshift Hammer Energy Gun Heavy EM Shotgun Energy Cannon Beam Cannon Ballistic Gun Assault Rifle Ballistic Cannon Advanced Assault Cannon Launcher Improved Grenade Launcher Special Weapon Remote Datajack Impact Weapon Makeshift Hammer Slashing Weapon Power Sword Build | -11 -10 -10 -10 -9 -8 -8 -8 -7 -7 -7 -7 -7 -7 -6 -6 -6 -6 -5 -5 -4 -4 -4 -3 -3 -2 -1 ------- Run | Yrd Mat Min Exi Min Mat Gar Mat Fac Was Fac Gar Fac Gar Fac Gar Fac Gar Fac Gar Fac Gar Ext Res Gar Res Acc Slots Evolved 18 | . . . . . 4 . . 2 . . . . . 2 . . . 2 . 2 . . 2 . 2 2 Power 1 | . . . . . . . . . . . . . . . . . . . . . . . 1 . . . Propulsion 4 | . . . . . 2 . . 1 . . . . . . . . . . . 1 . . . . . . Utility 12 | . . . . . 2 . . 1 . . . . . 2 . . . 2 . 1 . . . . 2 2 Weapon 1 | . . . . . . . . . . . . . . . . . . . . . . . 1 . . . Parts Attached 513 | 8 1 3 3 5 13 23 27 . 4 70 38 5 27 3 11 13 26 13 44 13 25 57 6 10 13 52 Power 45 | 2 . 1 . 1 1 2 2 . . 4 3 . 3 . 1 . 1 1 . 2 2 5 . 2 2 10 Engine 14 | 2 . 1 . 1 . 1 2 . . 3 . . 1 . 1 . . . . 1 . . . . . 1 Core 18 | . . . . . 1 1 . . . 1 3 . 2 . . . . 1 . 1 2 1 . 1 . 4 Reactor 13 | . . . . . . . . . . . . . . . . . 1 . . . . 4 . 1 2 5 Propulsion 110 | 2 . . . . 5 2 9 . . 10 8 . 6 . 5 2 3 3 11 2 7 15 3 1 4 12 Treads 11 | 2 . . . . 2 . 2 . . 2 1 . . . . . . . . 1 . . . . . 1 Leg 73 | . . . . . . 2 6 . . 4 7 . 6 . 5 2 3 3 10 1 7 14 1 1 1 . Wheel 13 | . . . . . 3 . 1 . . 2 . . . . . . . . 1 . . 1 . . . 5 Hover 9 | . . . . . . . . . . 2 . . . . . . . . . . . . 1 . . 6 Flight 4 | . . . . . . . . . . . . . . . . . . . . . . . 1 . 3 . Utility 111 | 2 1 . 1 1 3 2 3 . 1 6 9 3 7 2 4 3 6 2 11 6 5 12 . 3 5 13 Device 21 | 1 . . . . . 1 . . . 1 . 1 . . . . . 1 1 1 2 4 . 1 1 6 Storage 5 | 1 1 . 1 . . . 1 . . . . . . . . . . . . . . . . . . 1 Processor 11 | . . . . . 1 . . . 1 1 . . . 1 . . . . . . . . . 2 4 1 Hackware 45 | . . . . . . . . . . 2 7 1 5 . 3 3 5 1 8 5 3 2 . . . . Protection 29 | . . . . 1 2 1 2 . . 2 2 1 2 1 1 . 1 . 2 . . 6 . . . 5 Artifact . | . . . . . . . . . . . . . . . . . . . . . . . . . . . Weapon 247 | 2 . 2 2 3 4 17 13 . 3 50 18 2 11 1 1 8 16 7 22 3 11 25 3 4 2 17 Energy Gun 85 | 1 . . . 1 1 2 9 . 1 22 4 . 1 . . 3 4 3 11 1 6 4 . . 1 10 Energy Cannon 21 | . . 2 . . 1 2 . . . 6 2 . . . . . . . . . . 5 . . . 3 Ballistic Gun 14 | 1 . . 1 . 1 4 1 . . . . . 1 . . . . . . . . . . 2 . 3 Ballistic Cannon 29 | . . . . . . 3 . . . 8 4 1 2 . . 2 2 . 2 1 1 2 . . . 1 Launcher 25 | . . . . 2 . 3 1 . 1 1 5 . 2 . . . 1 . 3 . 1 3 1 1 . . Special Weapon 40 | . . . 1 . . . . . 1 3 3 . 3 . 1 2 3 3 6 1 3 7 1 1 1 . Impact Weapon 28 | . . . . . 1 3 2 . . 10 . 1 2 1 . 1 6 1 . . . . . . . . Slashing Weapon 5 | . . . . . . . . . . . . . . . . . . . . . . 4 1 . . . Piercing Weapon . | . . . . . . . . . . . . . . . . . . . . . . . . . . . Special Melee Weapon . | . . . . . . . . . . . . . . . . . . . . . . . . . . . Unidentified Prototypes 6 | . . . . . . . 2 . . 1 . . . . . . . . . 2 . . 1 . . . Corrupted Parts 2 | . . . . . . . 1 . . . . . . . . . . . . . . . . . . 1 System Corruption 10 | . . . . . . . 3 . . . . . . . . . . . . . . . . . . 7 Parts Lost 124 | . . 2 . 1 1 12 5 . . 3 14 . 3 . 1 . . 1 9 5 13 10 12 5 10 17 Power 14 | . . 1 . . . 1 1 . . . 2 . 1 . 1 . . . . 1 1 . 1 1 1 2 Propulsion 49 | . . . . . 1 4 2 . . 2 6 . 2 . . . . . 4 1 7 3 5 1 4 7 Utility 30 | . . . . 1 . 3 . . . 1 1 . . . . . . . 2 3 2 5 3 2 2 5 Weapon 31 | . . 1 . . . 4 2 . . . 5 . . . . . . 1 3 . 3 2 3 1 3 3 Highest Loss Streak 9 | . . 2 . 1 1 4 3 . . 1 4 . 3 . 1 . . 1 4 2 4 3 8 5 9 6 To Critical Strikes . | . . . . . . . . . . . . . . . . . . . . . . . . . . . Average Slot Usage (%) 90 | . 100 97 100 97 80 80 78 84 85 96 82 100 98 92 98 100 100 91 96 93 87 97 72 61 63 70 Engine 3 | . 14 12 14 14 . . 8 7 7 6 . . . . 2 6 4 . . . . . . . . . Core 2 | . . . . . 8 5 . . . . 6 7 6 6 3 . . 3 5 2 4 1 . 3 . . Treads 4 | . 28 28 28 28 14 9 4 . . 4 4 . . . . . . . . 4 . . . . . 1 Leg 20 | . . . . . . 4 21 30 30 30 20 38 36 33 32 33 33 29 28 20 20 26 20 3 3 . Wheel 1 | . . . . . 6 11 3 . . . . . . . . . . . . 5 . 3 . . . 2 Device 4 | . 14 14 14 . . 6 9 7 7 2 . 1 . . . . . 2 5 7 10 9 4 5 3 7 Storage 5 | . 14 14 14 14 9 9 9 7 7 7 7 7 7 6 6 6 6 5 5 1 . . . . . 1 Processor 5 | . . . . . 8 9 . . 1 8 7 7 7 6 6 6 6 5 5 5 . . . 8 14 17 Hackware 17 | . . . . . . . . . . 9 14 15 15 13 19 25 26 24 24 31 37 32 23 23 20 15 Protection 6 | . . . . 11 15 8 4 15 15 6 4 5 7 12 13 6 6 5 6 2 . 7 9 . . 7 Energy Gun 4 | . 14 . . 12 8 . 9 15 7 7 5 . . 6 . 3 3 3 5 1 6 5 3 . 1 3 Energy Cannon 1 | . . 12 14 12 2 5 . . . 2 . . . . . . . . . . . 1 2 . . 1 Ballistic Gun 1 | . 14 14 13 . 1 1 2 . . . . . . . . . . . . . . . . 1 . 1 Ballistic Cannon 1 | . . . . . . 3 3 . . 1 4 7 2 4 . 2 1 2 1 4 2 . . . . . Special Weapon 1 | . . . . . . . . . . . 3 1 4 . 5 3 3 3 2 3 . . 1 1 . . Impact Weapon 1 | . . . . . 3 4 2 . . 1 . 5 5 1 6 3 3 . . . . . . . . . Peak Build Rating 153 | 7 8 8 17 13 22 24 37 37 43 54 49 42 44 44 58 67 74 82 84 99 99 115 117 98 116 153 Average Rating 57 | 5 7 7 8 11 16 19 25 37 37 47 35 40 40 41 51 60 69 76 78 89 87 98 96 85 91 106 On Entrance 46 | . 7 8 8 9 13 22 17 37 37 43 49 42 40 39 42 58 63 73 81 81 88 99 112 61 58 57 Naked Turns . | . . . . . . . . . . . . . . . . . . . . . . . . . . . Heaviest Build 61 | 15 20 21 31 37 45 46 38 38 40 47 44 37 40 40 42 44 42 48 61 52 22 45 53 30 23 58 Greatest Support 100 | 40 40 40 40 40 40 40 72 72 72 82 60 60 60 55 75 86 86 86 91 85 100 95 70 28 37 60 Greatest Overweight (x) 12 | . . . . . 4 12 3 . . 1 7 . 1 . . . . . . . . 3 1 1 . 7 Average Overweight (x) . | . . . . . 2 1 . . . . . . . . . . . . . . . . . . . . Largest Inventory Capacity 15 | 8 10 10 15 15 15 15 15 15 15 15 15 15 15 15 15 15 15 15 15 15 5 5 5 5 5 5 Average Capacity 11 | 7 9 10 11 15 15 15 15 15 15 15 15 15 15 15 15 15 15 15 15 8 5 5 5 5 5 5 Most Carried 15 | 8 8 10 10 11 15 15 15 15 15 15 15 15 15 15 15 15 15 15 15 15 5 5 5 5 4 5 Average Carried 11 | 4 6 9 9 10 10 13 14 15 15 14 14 14 14 14 14 14 14 14 14 8 4 4 4 4 3 4 Final Capacity 15 | 8 10 10 15 15 15 15 15 15 15 15 15 15 15 15 15 15 15 15 15 5 5 5 5 5 5 5 Final Carried 15 | 5 8 10 10 11 15 15 15 15 15 15 15 14 15 15 15 14 15 14 15 5 5 5 3 4 2 5 Class Distribution -------------------- 36% | Botlord-Mutant 31% | Mutant 26% | Bothacker-Mutant 4% | Scavenger-Mutant Dominant Class ---------------- Mutant | -10/Materials Mutant | -10/Mines Mutant | -10/Exiles Mutant | -9/Mines Mutant | -8/Materials Mutant | -8/Garrison Mutant | -8/Materials Mutant | -7/Factory Mutant | -7/Waste Bothacker-Mutant | -7/Factory Bothacker-Mutant | -7/Garrison Bothacker-Mutant | -7/Factory Bothacker-Mutant | -7/Garrison Bothacker-Mutant | -6/Factory Bothacker-Mutant | -6/Garrison Botlord-Mutant | -6/Factory Botlord-Mutant | -6/Garrison Botlord-Mutant | -5/Factory Botlord-Mutant | -5/Garrison Botlord-Mutant | -4/Factory Botlord-Mutant | -4/Garrison Botlord-Mutant | -4/Extension Botlord-Mutant | -3/Research Mutant | -3/Garrison Mutant | -2/Research Mutant | -1/Access Resources | -11 -10 -10 -10 -9 -8 -8 -8 -7 -7 -7 -7 -7 -7 -6 -6 -6 -6 -5 -5 -4 -4 -4 -3 -3 -2 -1 ----------- Run | Yrd Mat Min Exi Min Mat Gar Mat Fac Was Fac Gar Fac Gar Fac Gar Fac Gar Fac Gar Fac Gar Ext Res Gar Res Acc Matter Collected 9192 | 280 70 77 . 105 204 471 376 . 422 914 734 59 583 . 281 156 667 180 883 237 686 952 42 144 . 669 Remotely 10 | . . . . . . . . . . . . . . . . . . . . . . 10 . . . . Salvage Created 11952 | 260 239 227 . 205 145 879 626 . 1120 1574 540 69 293 . 117 189 1099 114 785 222 647 1098 74 77 . 1353 Parts 532 | 25 17 8 . 18 9 52 22 . 7 83 34 . 7 . 7 12 31 4 41 14 25 50 . 3 . 63 Haulers Intercepted 3 | . 1 . . . . . 1 . . . . . . . . . . . . 1 . . . . . . Recyclers Shooed 15 | 2 . . . 1 . . 1 . . 1 . . . . . . . . . . . 2 . . . 8 Parts Field Recycled . | . . . . . . . . . . . . . . . . . . . . . . . . . . . Retrieved Matter . | . . . . . . . . . . . . . . . . . . . . . . . . . . . Parts Self-Destructed . | . . . . . . . . . . . . . . . . . . . . . . . . . . . Prevented . | . . . . . . . . . . . . . . . . . . . . . . . . . . . Kills | -11 -10 -10 -10 -9 -8 -8 -8 -7 -7 -7 -7 -7 -7 -6 -6 -6 -6 -5 -5 -4 -4 -4 -3 -3 -2 -1 ------- Run | Yrd Mat Min Exi Min Mat Gar Mat Fac Was Fac Gar Fac Gar Fac Gar Fac Gar Fac Gar Fac Gar Ext Res Gar Res Acc Combat Hostiles Destroyed 191 | . 2 2 . 9 4 28 11 . 6 29 25 1 9 . 2 3 9 2 16 3 9 10 1 . . 10 Melee 7 | . . . . . . 2 1 . . . . . 1 . 2 . . . . . . . 1 . . . Guns 61 | . 2 2 . . 1 8 4 . . 12 4 . 1 . . 1 3 2 10 . 3 4 . . . 4 Cannons 38 | . . . . 1 1 7 . . . 7 5 . . . . 2 . . 2 3 4 1 . . . 5 AOE 62 | . . . . 8 2 6 3 . 6 6 16 . 5 . . . 5 . 3 . . 2 . . . . Classes Destroyed 19 | 3 5 . . 1 1 2 1 . 1 2 1 . . . 1 . . . 1 . . . . . . . Worker 10 | 2 . . . . 1 . . . . 3 . . . . . . . . . 1 . 1 . . . 2 Builder 15 | . 1 . . 1 2 . 1 . . 3 . 1 . . . . . 1 . . . 4 . . . 1 Tunneler 13 | 7 . . . 2 . . 2 . . . . . . . . . . . . 1 . 1 . . . . Hauler 3 | . 1 . . . . . 1 . . . . . . . . . . . . 1 . . . . . . Recycler 11 | 1 . 2 . 2 . . . . . . . . . . . . . . . . . 1 . . . 5 Mechanic 1 | . 1 . . . . . . . . . . . . . . . . . . . . . . . . . Operator 2 | . . . . . . . . . . 1 . . . . . . . . . . . 1 . . . . Watcher 14 | . 1 . . . 1 . 1 . . 3 . . . . . 1 . . 1 1 1 3 . . . 1 Swarmer 57 | . . . . 9 3 11 . . . 2 14 . 6 . 2 . 5 1 3 . 1 . . . . . Cutter 3 | . . . . . . . . . . . 3 . . . . . . . . . . . . . . . Grunt 66 | . 2 2 . . . 7 5 . . 17 7 . 3 . . 2 3 1 5 . 7 5 . . . . Brawler 2 | . . . . . . . 1 . . 1 . . . . . . . . . . . . . . . . Duelist 7 | . . . . . . . . . . 1 1 . 1 . . . . . . . . 3 1 . . . Sentry 13 | . . . . . 1 6 2 . . 1 . . . . . . . . 2 . . . . . . 1 Specialist 2 | . . . . . . . . . . . . . . . 1 . . . 1 . . . . . . . Hunter 7 | . . . . . . 1 3 . . . . . . . . . 1 . . . 1 1 . . . . Programmer 30 | . . . . . . 3 . . . 7 . 1 . . . 1 . . 4 3 1 1 . . . 9 Behemoth 1 | . . . . . . . . . . . . . . . . . . . 1 . . . . . . . Compactor 6 | . . . . . . . . . 6 . . . . . . . . . . . . . . . . . Best Kill Streak 7 | 6 2 1 . 7 3 4 5 . 2 3 6 1 3 . 1 3 6 2 3 2 2 4 1 . . 6 Combat Bots Only 7 | . 2 1 . 7 3 4 4 . 2 3 6 1 3 . 1 1 6 2 3 2 2 3 1 . . 5 Max Kills in Single Turn 4 | 2 1 1 . 3 1 4 3 . 2 3 3 1 3 . 1 1 2 1 3 1 1 3 1 . . 1 Gunslinging . | . . . . . . . . . . . . . . . . . . . . . . . . . . . Exploded 4 | . . . . 2 1 4 3 . 2 3 3 . 3 . . . 2 . 3 . . 1 . . . . Melee 1 | . . . . . . 1 1 . . . . . 1 . 1 . . . . . . . 1 . . . Uniques/NPCs Destroyed . | . . . . . . . . . . . . . . . . . . . . . . . . . . . Combat | -11 -10 -10 -10 -9 -8 -8 -8 -7 -7 -7 -7 -7 -7 -6 -6 -6 -6 -5 -5 -4 -4 -4 -3 -3 -2 -1 -------- Run | Yrd Mat Min Exi Min Mat Gar Mat Fac Was Fac Gar Fac Gar Fac Gar Fac Gar Fac Gar Fac Gar Ext Res Gar Res Acc Hostile Shots Fired 1520 | . 7 29 . 15 25 138 96 . . 95 115 10 38 . 36 28 48 15 194 61 110 116 85 55 72 132 Missed 528 | . 2 5 . 4 2 29 32 . . 32 33 1 10 . 14 16 21 4 74 26 39 41 31 25 45 42 Damage Taken 20041 | 59 109 340 . 113 232 1629 885 . 18 1438 1538 136 520 . 381 187 378 197 2359 891 1444 1909 1561 601 827 2289 Core 3124 | . 12 100 . 38 26 159 216 . . 123 205 16 71 . 89 . 5 . 185 85 175 285 485 132 270 447 Absorbed by Shields 405 | . . . . . . 4 . . . . . . . . . . . . . . . 350 . 51 . . Redirected to Shielding 139 | . . . . . . . 3 . . 3 . . . . . . . . . . . 17 42 . . 74 Regen/Repaired (Parts) 684 | . . . . . 129 . . . . 315 . 117 . . . . . 123 . . . . . . . . Core Remaining (%) 63 | 100 . . . 40 . . 27 . . . . . 40 . . . 88 . 81 . . 52 . 52 81 72 Volleys Fired 1145 | 34 40 21 . 11 14 66 30 . 25 103 82 15 38 1 25 18 124 23 129 44 86 126 6 5 13 66 Largest 3 | 1 2 2 . 2 2 2 2 . 1 2 2 1 2 1 1 2 2 2 2 2 2 2 2 1 1 3 Hottest 241 | 40 60 80 . 100 103 104 111 . 36 128 103 48 84 65 5 113 108 154 159 148 153 163 163 46 65 241 Shots Fired 1487 | 34 52 32 . 17 19 93 42 . 25 171 85 15 39 1 25 24 126 30 180 45 126 167 7 5 13 114 Gun 836 | 34 52 28 . 6 11 29 36 . . 106 28 . 9 1 . 9 63 17 108 18 81 101 1 1 13 84 Cannon 320 | . . 4 . 5 3 61 4 . . 49 21 14 9 . . 8 11 . 26 13 31 30 1 . . 30 Launcher 87 | . . . . 6 5 3 2 . 25 6 13 . 2 . . . 3 . 9 . . 8 3 2 . . Special 244 | . . . . . . . . . . 10 23 1 19 . 25 7 49 13 37 14 14 28 2 2 . . Kinetic 299 | . 20 19 . . 2 50 5 . . 22 21 14 13 . . 8 11 . 26 13 31 8 . 1 . 35 Thermal 361 | . . 4 . 5 . 11 12 . . 27 . . 5 1 . 1 . 9 69 18 8 101 1 2 13 74 Explosive 74 | . . . . 6 5 3 2 . 25 6 13 . 2 . . . 3 . 9 . . . . . . . Electromagnetic 511 | 34 32 9 . 6 12 29 23 . . 106 28 . . . . 8 63 8 39 . 73 30 4 2 . 5 Robot Hit Streak 52 | 12 11 5 . 5 6 12 15 . 5 12 8 9 11 . 14 17 52 6 13 12 8 22 3 4 . 22 Robot Miss Streak 8 | 5 3 2 . 2 2 4 8 . 1 4 4 . 2 . 4 3 5 3 3 3 2 5 2 . . 2 Penetration Max 1 | . . . . . . . . . . . . . . . . . . . . . . . . . . 1 Secondary Targets 2 | . . 1 . . . . . . . . . . . . . . . . . . . 1 . . . . Max Gunslinging Chain 1 | . . 1 . . . . . . . . . . . . . . . . . . . 1 . . . . Shots Hit Robots 988 | 26 24 24 . 7 14 79 43 . 15 135 50 6 24 . 23 14 89 20 114 34 56 84 17 4 . 86 Core Hits 414 | 11 9 7 . 13 7 36 20 . 12 82 38 . 8 . 2 4 22 5 31 6 25 42 3 1 . 30 Critical Kills 2 | . . . . . . . . . . . . . . . 1 . . . . . . . . . . 1 Critical Parts Destroyed 21 | . . . . . . 2 3 . . 1 . 2 3 . . . 1 . 1 2 . 1 . . . 5 Critical Strikes 43 | . 2 . . . . 4 3 . . 3 1 2 3 . 1 1 2 1 2 5 3 4 . . . 6 Burn 2 | . . . . . . . . . . . . . . . . . . . . . . 2 . . . . Destroy 10 | . . . . . . . . . . . . . . . . . . . 1 2 . 1 . . . 6 Blast 11 | . . . . . . 2 . . . 2 1 . . . . 1 . . . 3 1 1 . . . . Corrupt 7 | . 2 . . . . . . . . . . . . . . . 1 1 1 . 2 . . . . . Smash 13 | . . . . . . 2 3 . . 1 . 2 3 . 1 . 1 . . . . . . . . . Melee Attacks 326 | . . . . . 3 36 26 . . 26 6 11 51 1 39 14 45 1 . . . 13 21 33 . . Impact 259 | . . . . . 3 36 26 . . 26 6 11 51 1 39 14 45 1 . . . . . . . . Slashing 67 | . . . . . . . . . . . . . . . . . . . . . . 13 21 33 . . Piercing . | . . . . . . . . . . . . . . . . . . . . . . . . . . . Sneak Attacks 16 | . . . . . 3 . 1 . . 2 . 1 4 . 2 . . 1 . . . 2 . . . . Combat Hostiles 3 | . . . . . . . . . . . . . 3 . . . . . . . . . . . . . Follow-up Attacks . | . . . . . . . . . . . . . . . . . . . . . . . . . . . Damage Inflicted 31537 | 430 360 326 . 595 683 2284 1656 . 3794 3701 2094 279 1098 . 342 259 1673 295 2656 879 1401 2851 544 325 . 3012 Guns 11689 | 350 331 281 . 51 100 325 562 . . 1792 241 . 91 . . 174 1030 201 1708 351 906 995 27 20 . 2153 Cannons 5050 | . . 35 . 53 45 873 69 . . 759 248 . 29 . . 85 54 . 444 365 495 643 25 . . 828 Explosions 10505 | 80 22 . . 433 260 402 316 . 3794 891 1605 . 449 . . . 432 . 504 163 . 1028 83 43 . . Melee 4079 | . . . . . 278 684 695 . . 193 . 279 529 . 342 . 157 91 . . . 160 409 262 . . Ramming 214 | . 7 10 . 58 . . 14 . . 66 . . . . . . . 3 . . . 25 . . . 31 Kinetic 4352 | . 94 193 . . . 680 87 . . 377 248 . 59 . . 85 54 . 444 365 495 181 . 20 . 970 Thermal 6558 | 80 22 35 . 108 64 168 125 . . 693 238 . 61 . . . . 122 1230 514 108 1069 27 . . 1894 Explosive 8418 | . . . . 378 196 402 316 . 3794 580 1367 . 449 . . . 432 . 504 . . . . . . . Electromagnetic 7916 | 350 237 88 . 51 145 350 419 . . 1792 241 . . . . 174 1030 79 478 . 798 1416 108 43 . 117 Impact 3248 | . . . . . 278 684 695 . . 193 . 279 529 . 342 . 157 91 . . . . . . . . Slashing 831 | . . . . . . . . . . . . . . . . . . . . . . 160 409 262 . . Piercing . | . . . . . . . . . . . . . . . . . . . . . . . . . . . Highest Corruption 13 | . . . . . . 4 13 . . . . 10 6 . . . . . . . 9 13 3 4 . 3 Average Corruption 6 | . . . . . . 3 7 . . . . 8 5 . . . . . . . 8 8 1 3 . 2 Corruption Purged 18 | . . . . . . . . . . . . 5 . . . . . . . . . 13 . . . . Corruption Blocked . | . . . . . . . . . . . . . . . . . . . . . . . . . . . Effects 305 | . . . . . . 35 44 . . . . 4 32 . . . . . . . 84 72 4 27 . 3 Message Errors 77 | . . . . . . 9 11 . . . . 1 9 . . . . . . . 22 16 2 7 . . Matter Fused 78 | . . . . . . 8 12 . . . . . 8 . . . . . . . 20 17 1 10 . 2 Heat Flow Errors 45 | . . . . . . 4 8 . . . . 1 3 . . . . . . . 11 13 1 4 . . Energy Discharges 29 | . . . . . . 4 3 . . . . . 6 . . . . . . . 7 6 . 2 . 1 Parts Rejected 1 | . . . . . . . . . . . . . 1 . . . . . . . . . . . . . Parts Fused 8 | . . . . . . . 1 . . . . 1 . . . . . . . . 2 4 . . . . Data Loss (minor) 27 | . . . . . . 4 2 . . . . . 3 . . . . . . . 9 6 . 3 . . Data Loss (major) 16 | . . . . . . 4 2 . . . . . 2 . . . . . . . 5 2 . 1 . . Misfires 9 | . . . . . . 1 2 . . . . . . . . . . . . . 3 3 . . . . Alerts 6 | . . . . . . . 2 . . . . 1 . . . . . . . . 3 . . . . . Weapon Failures 9 | . . . . . . 1 1 . . . . . . . . . . . . . 2 5 . . . . Overload Shots . | . . . . . . . . . . . . . . . . . . . . . . . . . . . Overflow Damage 2197 | . 16 . . 44 239 132 199 . . 271 86 195 378 . 164 . 84 71 . 70 . 52 59 83 . 54 Projectiles 216 | . . . . . . 13 18 . . 69 . . . . . . . . . 30 . 32 . . . 54 Explosions 379 | . 16 . . 44 71 . . . . 49 86 . 53 . . . . . . 40 . 20 . . . . Melee 1602 | . . . . . 168 119 181 . . 153 . 195 325 . 164 . 84 71 . . . . 59 83 . . Knockbacks 51 | . . . . . 2 5 6 . . 11 2 3 4 . 1 . . 1 7 3 5 1 . . . . Impact 19 | . . . . . 2 1 6 . . 1 . 3 3 . 1 . . 1 . . . 1 . . . . Kinetic 31 | . . . . . . 4 . . . 10 2 . 1 . . . . . 6 3 5 . . . . . Secondary 1 | . . . . . . . . . . . . . . . . . . . 1 . . . . . . . Self-Inflicted Damage 866 | 59 52 . . 30 24 11 . . 18 330 190 . . . . . . . 49 53 . 1 15 20 . 14 Shots 23 | 2 1 . . 1 1 1 . . 1 6 5 . . . . . . . 1 1 . 1 1 1 . . Rammed 19 | . 1 2 . 7 . . 2 . . . . . . . . . . . . . . . . . . 7 Targets Rammed 36 | . 1 3 . 9 . . 3 . . 6 . . . . . . . 1 . . . 6 . . . 7 Kicked 14 | . . . . . . . 1 . . 6 . . . . . . . 1 . . . 6 . . . . Crushed 3 | . . 1 . 2 . . . . . . . . . . . . . . . . . . . . . . Highest Temperature 390 | 12 30 88 . 108 129 340 251 . . 240 140 141 266 12 . 96 60 45 390 6 224 298 140 197 14 308 Average Temperature 65 | 12 20 43 . 46 45 125 57 . . 65 36 87 90 9 . 31 17 16 48 3 53 88 54 85 6 84 Received Heat Transfer 3569 | . 30 195 . . 18 312 216 . . 270 531 . 168 . 12 39 111 84 792 84 211 184 21 84 36 171 Effects 4 | . . . . . . 3 . . . . . . 1 . . . . . . . . . . . . . Shutdowns 1 | . . . . . . 1 . . . . . . . . . . . . . . . . . . . . Energy Bleed 1 | . . . . . . . . . . . . . 1 . . . . . . . . . . . . . Interference 1 | . . . . . . 1 . . . . . . . . . . . . . . . . . . . . Damage (minor) 1 | . . . . . . 1 . . . . . . . . . . . . . . . . . . . . Siege Activations . | . . . . . . . . . . . . . . . . . . . . . . . . . . . Robots Corrupted 36 | . . . . . 3 4 5 . . 5 . 2 2 . 1 . 7 1 1 . 2 2 . . . 1 Combat Hostiles 21 | . . . . . . 4 3 . . 4 . 1 2 . . . 1 . 1 . 2 2 . . . 1 Parts Fried 89 | 2 . . . . 6 5 6 . . 28 1 2 3 . . . 19 3 3 . 3 6 . . . 2 Impact Corruptions 48 | . . . . . 8 5 7 . . 4 . 9 9 . 3 . 1 2 . . . . . . . . Robots Melted 3 | . . . . . . 1 . . . . . . . . . . . . . 1 . 1 . . . . Combat Hostiles 2 | . . . . . . 1 . . . . . . . . . . . . . . . 1 . . . . Parts Melted 25 | . . . . . . 2 1 . . 2 . . . . . . . . 3 1 . 6 . . . 10 Heat Transferred 8352 | 100 50 74 . 161 50 296 259 . . 850 200 . 148 . . . . 148 1591 581 148 1698 37 . . 1961 Parts Sabotaged . | . . . . . . . . . . . . . . . . . . . . . . . . . . . Parts Stolen . | . . . . . . . . . . . . . . . . . . . . . . . . . . . Parts Stripped . | . . . . . . . . . . . . . . . . . . . . . . . . . . . Power Chain Reactions 14 | 2 1 . . 1 1 . . . . 4 3 . . . . . . . . . . 2 . . . . Alert | -11 -10 -10 -10 -9 -8 -8 -8 -7 -7 -7 -7 -7 -7 -6 -6 -6 -6 -5 -5 -4 -4 -4 -3 -3 -2 -1 ------- Run | Yrd Mat Min Exi Min Mat Gar Mat Fac Was Fac Gar Fac Gar Fac Gar Fac Gar Fac Gar Fac Gar Ext Res Gar Res Acc Peak Influence 1642 | 50 164 56 . 280 111 1530 802 327 183 676 1642 897 1211 645 885 498 1557 1073 1545 820 1078 757 408 282 364 218 Initial 861 | . 32 5 . . . . 745 327 114 . 467 861 493 635 451 464 179 816 660 805 317 565 396 87 158 218 Average 525 | 17 55 35 . 155 32 782 701 327 146 206 1100 820 819 635 636 401 782 971 1021 588 614 393 355 144 190 60 Maximum Alert Level 5 | . . . . 1 . 4 3 1 . 2 5 3 4 2 3 2 4 3 4 3 3 3 2 1 1 1 Low Security (%) 29 | 100 100 100 . 72 100 11 . . 100 55 . . . . . . 14 . . . . 8 10 77 65 99 Level 1 15 | . . . . 27 . 15 . 100 . 27 . . . . . 52 9 . . . 18 48 89 22 34 . Level 2 23 | . . . . . . 13 47 . . 16 13 4 33 100 75 47 23 . 2 85 46 41 . . . . Level 3 22 | . . . . . . 33 52 . . . 41 95 54 . 24 . 19 100 68 14 35 . . . . . Level 4 8 | . . . . . . 26 . . . . 38 . 11 . . . 31 . 29 . . . . . . . Level 5 . | . . . . . . . . . . . 6 . . . . . . . . . . . . . . . High Security . | . . . . . . . . . . . . . . . . . . . . . . . . . . . Max Security . | . . . . . . . . . . . . . . . . . . . . . . . . . . . Squads Dispatched 52 | . . . . . . . 4 . . 16 . 1 . . . 7 . 4 . 3 . 5 2 . 5 5 Investigation 9 | . . . . . . . . . . 3 . . . . . 2 . . . . . 1 1 . 2 . Extermination 16 | . . . . . . . . . . 7 . 1 . . . 1 . 1 . 2 . . 1 . . 3 Reinforcement 15 | . . . . . . . 3 . . 4 . . . . . 1 . . . 1 . 2 . . 3 1 Assault 5 | . . . . . . . 1 . . 1 . . . . . . . 1 . . . 2 . . . . Garrison 7 | . . . . . . . . . . 1 . . . . . 3 . 2 . . . . . . . 1 Intercept . | . . . . . . . . . . . . . . . . . . . . . . . . . . . Searches Triggered . | . . . . . . . . . . . . . . . . . . . . . . . . . . . Construction Impeded 4 | . . . . . . . 1 . . . . . . . . . . . . 1 . 1 . . . 1 Haulers Reinforced 1 | . . . . . . . . . . 1 . . . . . . . . . . . . . . . . Active Scanning Responses . | . . . . . . . . . . . . . . . . . . . . . . . . . . . Cargo Convoy Interrupts . | . . . . . . . . . . . . . . . . . . . . . . . . . . . Stealth | -11 -10 -10 -10 -9 -8 -8 -8 -7 -7 -7 -7 -7 -7 -6 -6 -6 -6 -5 -5 -4 -4 -4 -3 -3 -2 -1 --------- Run | Yrd Mat Min Exi Min Mat Gar Mat Fac Was Fac Gar Fac Gar Fac Gar Fac Gar Fac Gar Fac Gar Ext Res Gar Res Acc Distress Signals 22 | . 1 . . . . . 2 . . 3 . . . . 1 1 1 . . . 3 2 1 . 4 3 Communications Jammed . | . . . . . . . . . . . . . . . . . . . . . . . . . . . Distress Signals . | . . . . . . . . . . . . . . . . . . . . . . . . . . . Times Spotted 553 | . 7 2 . 10 7 33 22 . 6 45 45 1 23 . 17 15 35 18 52 13 49 54 16 20 35 28 Peak Tracking Total 20 | . 3 2 . 7 4 6 5 . 4 5 11 1 6 . 4 4 8 7 6 5 8 9 9 17 20 8 Tactical Retreats 67 | . . . . . . 6 . . . 9 2 . 1 . . . 1 1 13 5 13 1 3 2 6 4 Traps | -11 -10 -10 -10 -9 -8 -8 -8 -7 -7 -7 -7 -7 -7 -6 -6 -6 -6 -5 -5 -4 -4 -4 -3 -3 -2 -1 ------- Run | Yrd Mat Min Exi Min Mat Gar Mat Fac Was Fac Gar Fac Gar Fac Gar Fac Gar Fac Gar Fac Gar Ext Res Gar Res Acc Traps Triggered 45 | . . . . . . 10 2 1 . 1 3 . 2 . 5 1 4 . 3 . 8 1 1 1 1 1 Indirectly 1 | . . . . . . . . . . . . . . . . . . . . . . . 1 . . . Trap Hack Attempts . | . . . . . . . . . . . . . . . . . . . . . . . . . . . Triggered . | . . . . . . . . . . . . . . . . . . . . . . . . . . . Disarmed . | . . . . . . . . . . . . . . . . . . . . . . . . . . . Reprogrammed . | . . . . . . . . . . . . . . . . . . . . . . . . . . . Reused 5 | . . . . . . 2 . . . . . . . . . . . . . . 3 . . . . . Traps Extracted . | . . . . . . . . . . . . . . . . . . . . . . . . . . . Installed 6 | . . . . . . 2 . . . . . . . . . . . . . . 4 . . . . . Triggered 7 | . . . . . . 2 . . . . . . . . . 1 . . . . 3 . . 1 . . Most Traps Carried 4 | . . 2 2 2 2 2 . . . . . . . . . . . . . . 4 . . . . . Machines | -11 -10 -10 -10 -9 -8 -8 -8 -7 -7 -7 -7 -7 -7 -6 -6 -6 -6 -5 -5 -4 -4 -4 -3 -3 -2 -1 ---------- Run | Yrd Mat Min Exi Min Mat Gar Mat Fac Was Fac Gar Fac Gar Fac Gar Fac Gar Fac Gar Fac Gar Ext Res Gar Res Acc Machines Disabled 69 | . 3 . . . 1 8 3 . . 4 7 . 4 . 3 . 9 1 5 8 6 5 1 1 . . Max in Single Turn 8 | . 3 . . . 1 2 1 . . 2 2 . 2 . 1 . 1 . 2 8 1 1 1 1 . . Garrison Access 1 | . . . . . . . . . . . . . . . . . . . . . . . . . 1 . Garrison Relay 24 | . . . . . . 4 . . . . 4 . 2 . 3 . 6 . 3 . 2 . . . . . Phase Generator 4 | . . . . . . 1 . . . . 1 . 1 . . . . . 1 . . . . . . . Machines Repaired . | . . . . . . . . . . . . . . . . . . . . . . . . . . . Machines Dismantled 1 | . . . . . . . . . . . . . . . . . . . . . . 1 . . . . Machines Sabotaged . | . . . . . . . . . . . . . . . . . . . . . . . . . . . Overloaded Fab Kills . | . . . . . . . . . . . . . . . . . . . . . . . . . . . Hacking | -11 -10 -10 -10 -9 -8 -8 -8 -7 -7 -7 -7 -7 -7 -6 -6 -6 -6 -5 -5 -4 -4 -4 -3 -3 -2 -1 --------- Run | Yrd Mat Min Exi Min Mat Gar Mat Fac Was Fac Gar Fac Gar Fac Gar Fac Gar Fac Gar Fac Gar Ext Res Gar Res Acc Machines Accessed 109 | . 6 1 2 . 9 3 5 . . 19 3 5 2 3 3 6 1 6 1 6 3 15 2 . 4 4 Terminals 66 | . 6 1 . . 4 3 3 . . 8 3 2 2 1 3 . 1 3 1 3 3 14 . . 2 3 Fabricators 5 | . . . . . . . . . . 2 . . . . . 2 . . . . . . 1 . . . Repair Stations 9 | . . . . . 2 . . . . 3 . 1 . . . 1 . 1 . 1 . . . . . . Recycling Units 6 | . . . . . . . . . . 1 . 1 . . . 1 . . . 1 . 1 . . . 1 Scanalyzers 11 | . . . . . 2 . 2 . . 3 . . . 1 . 1 . 1 . . . . . . 1 . Garrison Access 10 | . . . . . 1 . . . . 2 . 1 . 1 . 1 . 1 . 1 . . 1 . 1 . Total Hacks 253 | . 12 6 2 . 26 6 16 . . 53 6 9 4 4 6 16 3 13 2 19 4 24 3 . 7 12 Successful 132 | . 6 3 2 . 18 1 13 . . 32 1 5 . 2 2 10 1 11 1 7 1 8 1 . 3 4 Failed 121 | . 6 3 . . 8 5 3 . . 21 5 4 4 2 4 6 2 2 1 12 3 16 2 . 4 8 Catastrophic 31 | . . 1 . . 1 3 2 . . 4 1 3 1 1 1 1 1 1 . 1 1 5 1 . . 2 Database Lockouts . | . . . . . . . . . . . . . . . . . . . . . . . . . . . Manual 80 | . 8 5 1 . 13 . 2 . . 15 . 2 . 1 . 3 . 1 . 13 . 7 2 . 2 5 Terminals 144 | . 12 6 . . 13 6 5 . . 18 6 3 4 1 6 . 3 4 2 15 4 22 . . 4 10 Fabricators 11 | . . . . . . . . . . 5 . . . . . 4 . . . . . . 2 . . . Repair Stations 18 | . . . . . 4 . . . . 7 . 1 . . . 3 . 2 . 1 . . . . . . Recycling Units 21 | . . . . . . . . . . 5 . 4 . . . 7 . . . 1 . 2 . . . 2 Scanalyzers 39 | . . . . . 5 . 11 . . 13 . . . 1 . 1 . 6 . . . . . . 2 . Garrison Access 18 | . . . . . 4 . . . . 5 . 1 . 2 . 1 . 1 . 2 . . 1 . 1 . Terminal Hacks 42 | . 3 3 2 . 4 1 1 . . 5 1 . . . 2 . 1 2 1 3 1 8 . . . 4 Record 5 | . . . 1 . . . . . . . . . . . . . . . . . . 1 . . . 3 Robot Schematic 1 | . . . . . . . . . . 1 . . . . . . . . . . . . . . . . Prototype ID Bank 9 | . 2 2 . . 1 . 1 . . 1 . . . . . . . . . 1 . 1 . . . . Open Door 7 | . . . . . . . . . . . 1 . . . . . . . . . . 6 . . . . Open DSF 1 | . . . . . . . . . . 1 . . . . . . . . . . . . . . . . Emergency Access Points 5 | . . . . . . 1 . . . . . . . . 1 . 1 . 1 . 1 . . . . . Terminal Index 1 | . . . . . 1 . . . . . . . . . . . . . . . . . . . . . Unreport Threat 3 | . . . . . . . . . . . . . . . . . . 1 . 1 . . . . . 1 Locate Traps 5 | . 1 . . . 1 . . . . 2 . . . . . . . 1 . . . . . . . . Zone Layout 3 | . . 1 . . 1 . . . . . . . . . . . . . . 1 . . . . . . Security Stations 1 | . . . . . . . . . . . . . . . 1 . . . . . . . . . . . Derelict Proto ID Bank 1 | . . . 1 . . . . . . . . . . . . . . . . . . . . . . . Fabricator Hacks 5 | . . . . . . . . . . 2 . . . . . 3 . . . . . . . . . . Load Schematic 4 | . . . . . . . . . . 2 . . . . . 2 . . . . . . . . . . Build 1 | . . . . . . . . . . . . . . . . 1 . . . . . . . . . . Repair Station Hacks 13 | . . . . . 4 . . . . 6 . . . . . 1 . 2 . . . . . . . . Scan Component 7 | . . . . . 2 . . . . 3 . . . . . 1 . 1 . . . . . . . . Repair 6 | . . . . . 2 . . . . 3 . . . . . . . 1 . . . . . . . . Recycling Unit Hacks 6 | . . . . . . . . . . 1 . 2 . . . 2 . . . 1 . . . . . . Retrieve Matter 2 | . . . . . . . . . . . . 1 . . . 1 . . . . . . . . . . Retrieve Components 4 | . . . . . . . . . . 1 . 1 . . . 1 . . . 1 . . . . . . Scanalyzer 33 | . . . . . 4 . 11 . . 11 . . . . . . . 6 . . . . . . 1 . Insert Component 16 | . . . . . 2 . 5 . . 5 . . . . . . . 3 . . . . . . 1 . Analyze 17 | . . . . . 2 . 6 . . 6 . . . . . . . 3 . . . . . . . . Garrison Access Hacks 9 | . . . . . 1 . . . . 1 . 1 . 1 . 1 . 1 . 1 . . 1 . 1 . Unlock Access 8 | . . . . . 1 . . . . 1 . 1 . 1 . 1 . 1 . 1 . . 1 . . . Seal Access 1 | . . . . . . . . . . . . . . . . . . . . . . . . . 1 . Unauthorized Hacks 24 | . 3 . . . 5 . 1 . . 6 . 2 . 1 . 3 . . . 2 . . . . 1 . Terminals 15 | . 3 . . . 4 . 1 . . 4 . . . . . . . . . 2 . . . . 1 . Assimilate 2 | . . . . . 1 . . . . . . . . . . . . . . . . . . . 1 . Botnet 10 | . 2 . . . 2 . 1 . . 4 . . . . . . . . . 1 . . . . . . Operators 3 | . 1 . . . 1 . . . . . . . . . . . . . . 1 . . . . . . Fabricators . | . . . . . . . . . . . . . . . . . . . . . . . . . . . Repair Stations . | . . . . . . . . . . . . . . . . . . . . . . . . . . . Recycling Units 6 | . . . . . . . . . . 1 . 2 . . . 3 . . . . . . . . . . Monitor 1 | . . . . . . . . . . . . . . . . 1 . . . . . . . . . . Reject 2 | . . . . . . . . . . . . 1 . . . 1 . . . . . . . . . . Recyclers 3 | . . . . . . . . . . 1 . 1 . . . 1 . . . . . . . . . . Scanalyzers . | . . . . . . . . . . . . . . . . . . . . . . . . . . . Garrison Access 3 | . . . . . 1 . . . . 1 . . . 1 . . . . . . . . . . . . Broadcast 2 | . . . . . 1 . . . . . . . . 1 . . . . . . . . . . . . Reprogram 1 | . . . . . . . . . . 1 . . . . . . . . . . . . . . . . Data Cores Recovered . | . . . . . . . . . . . . . . . . . . . . . . . . . . . Used . | . . . . . . . . . . . . . . . . . . . . . . . . . . . Hacking Detections 90 | . 6 1 . . 6 3 5 . . 17 3 4 2 3 3 5 1 4 1 5 2 10 2 . 3 4 Full Trace Events 13 | . . 1 . . . 2 . . . 2 . . 1 . 2 2 . . . . 1 . 1 . 1 . Feedback Events 1 | . . . . . . . . . . . . . 1 . . . . . . . . . . . . . Corruption 1 | . . . . . . . . . . . . . 1 . . . . . . . . . . . . . Feedback Blocked . | . . . . . . . . . . . . . . . . . . . . . . . . . . . Robot Schematics Acquired 1 | . . . . . . . . . . 1 . . . . . . . . . . . . . . . . Robots Built . | . . . . . . . . . . . . . . . . . . . . . . . . . . . Authchips . | . . . . . . . . . . . . . . . . . . . . . . . . . . . Time . | . . . . . . . . . . . . . . . . . . . . . . . . . . . Total Robot Build Rating . | . . . . . . . . . . . . . . . . . . . . . . . . . . . Part Schematics Acquired 14 | . . . . . 2 . 4 . . 5 . . . . . . . 3 . . . . . . . . Parts Built 2 | . . . . . . . . . . . . . . . . 2 . . . . . . . . . . Authchips . | . . . . . . . . . . . . . . . . . . . . . . . . . . . Time 84 | . . . . . . . . . . . . . . . . 84 . . . . . . . . . . Total Part Build Rating 8 | . . . . . . . . . . . . . . . . 8 . . . . . . . . . . Parts Repaired 6 | . . . . . 2 . . . . 3 . . . . . . . 1 . . . . . . . . Time 219 | . . . . . 52 . . . . 123 . . . . . . . 44 . . . . . . . . Parts Recycled . | . . . . . . . . . . . . . . . . . . . . . . . . . . . Recycled Matter . | . . . . . . . . . . . . . . . . . . . . . . . . . . . Retrieved Matter . | . . . . . . . . . . . . . . . . . . . . . . . . . . . Retrieved Components 5 | . . . . . . . . . . 1 . 1 . . . 1 . . . 2 . . . . . . Parts Scanalyzed 14 | . . . . . 2 . 4 . . 5 . . . . . . . 3 . . . . . . . . Part Schematics Acquired 14 | . . . . . 2 . 4 . . 5 . . . . . . . 3 . . . . . . . . Parts Damaged 3 | . . . . . . . . . . 1 . . . . . . . 2 . . . . . . . . Bothacking | -11 -10 -10 -10 -9 -8 -8 -8 -7 -7 -7 -7 -7 -7 -6 -6 -6 -6 -5 -5 -4 -4 -4 -3 -3 -2 -1 ------------ Run | Yrd Mat Min Exi Min Mat Gar Mat Fac Was Fac Gar Fac Gar Fac Gar Fac Gar Fac Gar Fac Gar Ext Res Gar Res Acc Used RIF Installer 7 | . . . . . . 1 . . . . 1 . 1 . 1 . 1 . 1 . 1 . . . . . Threat Obfuscator 1 | . . . . . . . . . . . . . 1 . . . . . . . . . . . . . Zone Cloak 1 | . . . . . . . . . . . . . . . . . . . . . 1 . . . . . Watcher Feeds 1 | . . . . . . . . . . . 1 . . . . . . . . . . . . . . . Patrol Navigation 1 | . . . . . . . . . . . . . . . 1 . . . . . . . . . . . Autooverride 1 | . . . . . . . . . . . . . . . . . 1 . . . . . . . . . Autoassimilate 1 | . . . . . . . . . . . . . . . . . . . 1 . . . . . . . Robots Hacked 102 | . . . . . . . . . . 4 16 1 8 . 5 5 8 7 21 4 10 6 2 4 1 . Non-combat 8 | . . . . . . . . . . 2 . 1 . . . . . 2 . 1 . 2 . . . . Combat 94 | . . . . . . . . . . 2 16 . 8 . 5 5 8 5 21 3 10 4 2 4 1 . Autooverrided 8 | . . . . . . . . . . . . . . . . . . 1 3 . 1 . 1 2 . . Autoassimilated 8 | . . . . . . . . . . . . . . . . . . . . . 4 1 . 2 1 . Robot Hacks Applied 115 | . . . . . . . . . . 8 17 1 10 . 9 5 8 10 26 10 5 5 1 . . . parse_system 8 | . . . . . . . . . . . 1 . 1 . 1 . 1 3 1 . . . . . . . no_distress 3 | . . . . . . . . . . 1 . . . . . . . . . 1 . 1 . . . . map_walls 2 | . . . . . . . . . . 2 . . . . . . . . . . . . . . . . find_fabricator 1 | . . . . . . . . . . . . . . . . . . . . 1 . . . . . . find_dsf 1 | . . . . . . . . . . . . . . . . . . . . 1 . . . . . . drop_inventory 1 | . . . . . . . . . . . . . . . . . . 1 . . . . . . . . locate_stockpiles 1 | . . . . . . . . . . . . . . . . . . 1 . . . . . . . . map_route 1 | . . . . . . . . . . . . . . . . . . 1 . . . . . . . . mark_security 1 | . . . . . . . . . . . . . . . . . . 1 . . . . . . . . find_shortcuts 1 | . . . . . . . . . . . . . . . . . . . 1 . . . . . . . find_garrison 3 | . . . . . . . . . . 1 . . . . . . . 1 . 1 . . . . . . link_complan 1 | . . . . . . . . . . . . . . . . . . . . 1 . . . . . . broadcast_data 1 | . . . . . . . . . . . . . . . . . . . . 1 . . . . . . disrupt_area 1 | . . . . . . . . . . . . . . . . . . . 1 . . . . . . . spike_heat 6 | . . . . . . . . . . . 1 . . . 2 . . . 2 1 . . . . . . overload_power 1 | . . . . . . . . . . . 1 . . . . . . . . . . . . . . . wipe_record 3 | . . . . . . . . . . 1 . . . . . . . 1 . 1 . . . . . . disable_weapons 2 | . . . . . . . . . . 2 . . . . . . . . . . . . . . . . reboot_system 5 | . . . . . . . . . . . . . 1 . . . 2 . 1 . 1 . . . . . overwrite_iff 50 | . . . . . . . . . . . 14 . 6 . 4 3 4 1 16 . 1 . 1 . . . formatsys_low 1 | . . . . . . . . . . . . 1 . . . . . . . . . . . . . . formatsys_high 21 | . . . . . . . . . . 1 . . 2 . 2 2 1 . 4 2 3 4 . . . . Relay Couplers Released 93 | . . . . . . 14 . . . . 19 . 7 . 12 . 22 . 11 . 8 . . . . . Machine Destruction 93 | . . . . . . 14 . . . . 19 . 7 . 12 . 22 . 11 . 8 . . . . . Attached 44 | . . . . . . . . . . 2 7 1 5 . 3 2 5 1 8 5 3 2 . . . . Fabnet Peak Effective % . | . . . . . . . . . . . . . . . . . . . . . . . . . . . Robots Rewired 27 | . . . . . . . . . . . . . . . 4 . 14 . . . . 9 . . . . Allies Hacked 6 | . . . . . . . . . . . . . . . . . . 1 1 . 1 2 1 . . . Hacks Repelled . | . . . . . . . . . . . . . . . . . . . . . . . . . . . Allies | -11 -10 -10 -10 -9 -8 -8 -8 -7 -7 -7 -7 -7 -7 -6 -6 -6 -6 -5 -5 -4 -4 -4 -3 -3 -2 -1 -------- Run | Yrd Mat Min Exi Min Mat Gar Mat Fac Was Fac Gar Fac Gar Fac Gar Fac Gar Fac Gar Fac Gar Ext Res Gar Res Acc Total Allies 126 | . . . . . 1 . . . . 2 16 1 7 . 9 5 21 2 19 2 10 24 2 4 1 . Largest Group 13 | . . . . . 1 . . . . 1 3 1 1 1 4 2 13 9 3 1 5 11 2 2 . . Highest-Rated Group 553 | . . . . . 26 . . . . 32 77 23 32 32 184 62 533 376 105 49 116 553 208 60 . . Highest-Rated Ally 159 | . . . . . 26 . . . . 32 32 23 32 32 46 41 148 148 49 49 116 159 159 30 . . Total Orders 23 | . . . . . . . . . . 1 . 2 2 . 4 3 . . . . 6 5 . . . . STAY 13 | . . . . . . . . . . 1 . 1 1 . 3 1 . . . . 3 3 . . . . FOLLOW 8 | . . . . . . . . . . . . . 1 . 1 1 . . . . 3 2 . . . . AID 2 | . . . . . . . . . . . . 1 . . . 1 . . . . . . . . . . Ally Attacks 804 | . . . . . . . . . . 2 53 . 36 . 50 19 164 100 70 2 65 224 14 5 . . Total Damage 19422 | . . . . . . . . . . 68 1033 . 832 . 1019 460 5322 2484 1230 48 1195 5401 286 44 . . Kills 131 | . . . . . . . . . . . 12 . 7 . 9 4 26 23 5 . 10 35 . . . . Allies Corrupted 3 | . . . . . . . . . . . . . . . 1 . . . . . . 1 1 . . . Allies Melted 1 | . . . . . . . . . . . . . . . . . . . 1 . . . . . . . Field Lobotomies 1 | . . . . . . . . . . . . . . . . . . . . . 1 . . . . . Intel | -11 -10 -10 -10 -9 -8 -8 -8 -7 -7 -7 -7 -7 -7 -6 -6 -6 -6 -5 -5 -4 -4 -4 -3 -3 -2 -1 ------- Run | Yrd Mat Min Exi Min Mat Gar Mat Fac Was Fac Gar Fac Gar Fac Gar Fac Gar Fac Gar Fac Gar Ext Res Gar Res Acc Robot Analysis Total . | . . . . . . . . . . . . . . . . . . . . . . . . . . . Derelict Logs Recovered 1 | . . . . 1 . . . . . . . . . . . . . . . . . . . . . . Drone Launches . | . . . . . . . . . . . . . . . . . . . . . . . . . . . Drone Recoveries . | . . . . . . . . . . . . . . . . . . . . . . . . . . . Exploration | -11 -10 -10 -10 -9 -8 -8 -8 -7 -7 -7 -7 -7 -7 -6 -6 -6 -6 -5 -5 -4 -4 -4 -3 -3 -2 -1 ------------- Run | Yrd Mat Min Exi Min Mat Gar Mat Fac Was Fac Gar Fac Gar Fac Gar Fac Gar Fac Gar Fac Gar Ext Res Gar Res Acc Turns Passed 33848 | 267 911 504 494 817 943 2177 1222 30 444 4446 2032 554 1281 242 1216 846 2187 562 2542 1421 2329 2715 445 1569 381 1271 Spaces Moved 20847 | 113 384 269 306 467 327 1112 597 26 322 2958 931 319 781 187 815 566 1419 412 1651 911 1392 1562 360 820 611 1229 Core 132 | 2 . . . . . 37 . . . . 2 . . . . . . . . . . . 12 . . 79 Treads 2125 | 111 384 269 306 467 135 156 159 . . . 84 . . . . . . . . . 20 . . . . 34 Legs 15149 | . . . . . . 258 345 26 322 2958 845 319 781 187 815 566 1419 412 1651 911 1372 1401 270 291 . . Wheels 1291 | . . . . . 192 661 93 . . . . . . . . . . . . . . 161 . . . 184 Hover 230 | . . . . . . . . . . . . . . . . . . . . . . . . . . 230 Flight 1920 | . . . . . . . . . . . . . . . . . . . . . . . 78 529 611 702 Fastest Speed 40 | 50 160 160 160 160 100 100 100 120 120 120 120 120 120 120 114 114 114 114 114 120 120 95 45 45 40 40 Average Speed 122 | 158 160 160 160 160 178 156 148 120 120 120 188 120 120 120 118 114 114 114 116 120 120 129 103 74 45 68 Slowest Speed 650 | 160 160 160 160 160 320 650 260 120 120 190 400 120 190 120 120 114 114 114 120 120 145 190 120 180 52 400 Overloaded Moves . | . . . . . . . . . . . . . . . . . . . . . . . . . . . Propulsion Burnouts . | . . . . . . . . . . . . . . . . . . . . . . . . . . . Robots Hopped 30 | . . . . . . . . . . . . . . . . . . . . . . . . 1 22 7 Cave-ins Triggered 1 | . . . . . . . . . . . . . . . . . . . . . . 1 . . . . Exploration Rate (%) 46 | 7 63 41 72 74 25 91 46 2 88 41 90 9 76 6 48 14 95 8 75 14 77 95 8 34 23 21 Regions Visited 26 Branch Regions 4 Pre-discovered Areas 2 | . . . 1 1 . . . . . . . . . . . . . . . . . . . . . . Known Exits Taken 8 | . . . . . 1 . . . . 1 . 1 . 1 . 1 . 1 . 1 . . 1 . . . Unknown Exits Taken 8 | 1 1 1 1 1 . . 1 . . . . . . . . . . . . . . 1 . . 1 . Scrap Searched 2 | . . 2 . . . . . . . . . . . . . . . . . . . . . . . . Spaces Dug 179 | . . . . . . 16 2 . . 23 5 3 32 1 12 14 19 . . 1 2 13 1 23 3 9 Terrain Destroyed 1136 | 6 46 . . 53 25 176 12 . 127 131 178 3 103 1 12 14 33 3 97 38 10 29 1 23 3 12 Melee 142 | . . . . . . 5 2 . . 23 5 2 30 1 12 13 19 . . . . 6 1 23 . . Projectile 51 | . . . . . . . . . . 2 . 1 . . . 1 . 3 . 2 10 17 . . 3 12 AOE 943 | 6 46 . . 53 25 171 10 . 127 106 173 . 73 . . . 14 . 97 36 . 6 . . . . Terrain Rammed . | . . . . . . . . . . . . . . . . . . . . . . . . . . . Walls Destroyed . | . . . . . . . . . . . . . . . . . . . . . . . . . . . Machines Disabled . | . . . . . . . . . . . . . . . . . . . . . . . . . . . Actions | -11 -10 -10 -10 -9 -8 -8 -8 -7 -7 -7 -7 -7 -7 -6 -6 -6 -6 -5 -5 -4 -4 -4 -3 -3 -2 -1 --------- Run | Yrd Mat Min Exi Min Mat Gar Mat Fac Was Fac Gar Fac Gar Fac Gar Fac Gar Fac Gar Fac Gar Ext Res Gar Res Acc Total 27390 | 165 629 309 311 514 662 1412 862 26 353 3622 1119 464 1037 202 1014 732 1843 476 2108 1202 1925 2068 396 1722 677 1540 Wait 4122 | 1 196 7 . 17 293 131 160 . 1 422 27 111 123 8 94 110 200 23 250 224 385 269 . 842 60 168 Move 20770 | 112 383 268 305 466 326 1111 596 26 321 2958 930 319 780 186 814 566 1417 411 1650 911 1391 1560 360 817 571 1215 Hop 24 | . . . . . . . . . . . . . . . . . . . . . . . . 1 17 6 Pick Up 133 | 8 5 4 1 3 7 9 4 . . 11 10 1 4 1 5 4 11 1 15 5 11 4 1 1 1 6 Fast Attach 192 | 6 . 2 . 1 7 6 15 . 3 17 15 . 5 2 2 . 3 3 7 6 15 21 2 7 10 37 Attach 68 | 1 . . . 1 2 4 1 . . 2 9 2 3 . 1 3 1 3 10 4 2 3 3 3 3 7 Detach 52 | . . . . 1 2 1 2 . . 2 8 1 4 1 . 2 4 . 2 2 2 3 1 5 1 8 Swap 253 | 1 1 1 3 3 4 13 11 . 1 51 14 3 19 1 8 10 22 7 27 3 8 33 1 . . 8 Drop 172 | 2 3 3 2 2 4 6 14 . 2 24 7 1 6 1 9 5 13 3 14 3 11 21 1 2 1 12 Fire 1145 | 34 40 21 . 11 14 66 30 . 25 103 82 15 38 1 25 18 124 23 129 44 86 126 6 5 13 66 Melee 326 | . . . . . 3 36 26 . . 26 6 11 51 1 39 14 45 1 . . . 13 21 33 . . Ram 7 | . . . . . . . . . . . . . . . . . . . . . . . . . . 7 Kick 14 | . . . . . . . 1 . . 6 . . . . . . . 1 . . . 6 . . . . Crush 15 | . 1 3 . 9 . . 2 . . . . . . . . . . . . . . . . . . . Escape Stasis 75 | . . . . . . 27 . . . . 9 . 3 . 16 . 3 . 1 . 9 1 . 6 . . Rewire 8 | . . . . . . . . . . . 2 . 1 . 1 . . . 3 . 1 . . . . . Trap 6 | . . . . . . 2 . . . . . . . . . . . . . . 4 . . . . . Miscellaneous 8 | . . . . . . . . . . . . . . . . . . . . . . 8 . . . . Route ------- -11/Scrapyard -10/Materials (discovered 2 exits: *Min x2) -10/Mines (discovered 2 exits: [*Mat] / *Exi) -10/Exiles -9/Mines (discovered 2 exits: *Mat x2) -8/Materials -8/Garrison (discovered 3 exits: *Mat x3) -8/Materials -7/Factory -7/Waste -7/Factory (discovered 4 exits: *Fac x2 / [*Low] / Gar) -7/Garrison (discovered 3 exits: *Fac x3) -7/Factory -7/Garrison (discovered 2 exits: *Fac x2) -6/Factory -6/Garrison -6/Factory (discovered 2 exits: *Fac / Gar) -6/Garrison (discovered 3 exits: *Fac x3) -5/Factory -5/Garrison (discovered 2 exits: *Fac x2) -4/Factory -4/Garrison (discovered 3 exits: *Ext x3) -4/Extension (discovered 3 exits: *Res x2 / [*Cet]) -3/Research -3/Garrison -2/Research -1/Access To Epsilon Eridani History --------- Turn | Location | Event 21 | -11/Scrapyard | Discovered new exit (range 16) 268 | -11/Scrapyard | Entered Materials 314 | -10/Materials | Build established: Mutant 420 | -10/Materials | Discovered new exit (range 9) 538 | -10/Materials | Discovered new exit (range 8) 1179 | -10/Materials | Entered Mines 1182 | -10/Mines | Discovered new exit (range 10) 1407 | -10/Mines | Found a hidden stash of uninstalled traps 1493 | -10/Mines | A weapon hastily lodged in a ceiling crevice suddenly fell to the ground 1512 | -10/Mines | Deemed a non-threat by the Exiles lab entrance 1513 | -10/Mines | Discovered new exit (range 5) 1683 | -10/Mines | Entered Exiles 1722 | -10/Exiles | Met 8R-AWN 1751 | -10/Exiles | Met EX-HEX 1792 | -10/Exiles | Met EX-BIN 1813 | -10/Exiles | Aligned with FarCom system 1815 | -10/Exiles | Given EX-Vault access code 1859 | -10/Exiles | Opened EX-Vault 1868 | -10/Exiles | Found Field Lobotomy Kit 1918 | -10/Exiles | Warned to stay clear of 0b10 Research branches 1962 | -10/Exiles | Met EX-DEC 1970 | -10/Exiles | Learned location of Zion (-7) 2165 | -10/Exiles | Discovered new exit (range 10) 2177 | -10/Exiles | Left Exiles lab with Field Lobotomy Kit 2177 | -10/Exiles | Entered Mines 2208 | -9/Mines | Destroyed 7 combat bots 2275 | -9/Mines | Met a Derelict bent on vengeance 2362 | -9/Mines | Core integrity fell below 50% 2444 | -9/Mines | Discovered new exit (range 3) 2721 | -9/Mines | Discovered new exit (range 8) 2815 | -9/Mines | Assembled infested the area 2820 | -9/Mines | Assisted by a Guerilla fighting off Assembled 2994 | -9/Mines | Entered Materials 2994 | -8/Materials | Evolved 4 slots: Propulsion x2, Utility x2 3736 | -8/Materials | Repaired EM Pulse Gun 3739 | -8/Materials | Repaired Lgt. Treads 3810 | -8/Materials | Identified exit to Garrison 3937 | -8/Materials | Entered Garrison 4004 | -8/Garrison | Phase Generator disabled 4223 | -8/Garrison | Triggered checkpoint 4224 | -8/Garrison | Garrison Relay disabled 4495 | -8/Garrison | Spotted B-75 Beast 4607 | -8/Garrison | Discovered new exit (range 7) 4764 | -8/Garrison | Garrison Relay disabled 5024 | -8/Garrison | Discovered new exit (range 11) 5043 | -8/Garrison | Triggered checkpoint 5149 | -8/Garrison | Garrison Relay disabled 5327 | -8/Garrison | Discovered new exit (range 14) 5335 | -8/Garrison | Spotted B-75 Beast 5416 | -8/Garrison | Lost 4 parts (1p1n1u1w) 5547 | -8/Garrison | Triggered checkpoint 5921 | -8/Garrison | Build established: Scavenger-Mutant 5941 | -8/Garrison | Triggered checkpoint 5989 | -8/Garrison | Installed Relay Interface Framework 6015 | -8/Garrison | Garrison Relay disabled 6114 | -8/Garrison | Entered Materials 6612 | -8/Materials | Core integrity fell below 50% 6647 | -8/Materials | Lost 3 parts (2n1w) 6815 | -8/Materials | System corruption reached 10% 6883 | -8/Materials | Build established: Mutant 6914 | -8/Materials | First assault squad dispatched 7311 | -8/Materials | Discovered new exit (range 8) 7336 | -8/Materials | Entered Factory 7336 | -7/Factory | Evolved 2 slots: Propulsion x1, Utility x1 7366 | -7/Factory | Sucked down chute 7366 | -7/Factory | Entered Waste 7381 | -7/Waste | Spotted C-40 Crusher 7395 | -7/Waste | Spotted C-40 Crusher 7420 | -7/Waste | Spotted C-40 Crusher 7422 | -7/Waste | Spotted C-40 Crusher 7433 | -7/Waste | Destroyed C-40 Crusher 7439 | -7/Waste | Destroyed C-40 Crusher 7487 | -7/Waste | Spotted C-40 Crusher 7527 | -7/Waste | Spotted C-40 Crusher 7529 | -7/Waste | Destroyed C-40 Crusher 7573 | -7/Waste | Destroyed C-40 Crusher 7608 | -7/Waste | Destroyed C-40 Crusher 7608 | -7/Waste | Destroyed C-40 Crusher 7649 | -7/Waste | Discovered new exit (range 16) 7810 | -7/Waste | Entered Factory 9104 | -7/Factory | Repaired Hvy. EM Shotgun 9437 | -7/Factory | Build established: Bothacker-Mutant 9580 | -7/Factory | Discovered new exit (range 7) 10112 | -7/Factory | Discovered new exit (range 9) 10248 | -7/Factory | Discovered new exit (range 5) 10528 | -7/Factory | Garrison activated, responded to threat 11569 | -7/Factory | Repaired Shock Rifle? 12210 | -7/Factory | Repaired Lyr. Light Armor Plating 12210 | -7/Factory | First assault squad dispatched 12256 | -7/Factory | Identified exit to Garrison 12256 | -7/Factory | Entered Garrison 12291 | -7/Garrison | Phase Generator disabled 12378 | -7/Garrison | Lost 4 parts (1p2n1w) 12434 | -7/Garrison | Triggered checkpoint 12532 | -7/Garrison | Garrison Relay disabled 12632 | -7/Garrison | Triggered checkpoint 12694 | -7/Garrison | Lost 3 allies 12712 | -7/Garrison | Lost 4 parts (1p2n1w) 12787 | -7/Garrison | Lost 4 parts (1n1u2w) 12944 | -7/Garrison | Garrison Relay disabled 13023 | -7/Garrison | Discovered new exit (range 11) 13263 | -7/Garrison | Garrison Relay disabled 13321 | -7/Garrison | Discovered new exit (range 15) 13381 | -7/Garrison | Rescued a captive Derelict 13383 | -7/Garrison | Rescued a captive Derelict 13652 | -7/Garrison | Triggered checkpoint 13724 | -7/Garrison | Discovered new exit (range 14) 13909 | -7/Garrison | Triggered checkpoint 14088 | -7/Garrison | Triggered checkpoint 14099 | -7/Garrison | Triggered checkpoint 14222 | -7/Garrison | Expanded RIF knowledge: Watcher Feeds 14244 | -7/Garrison | Garrison Relay disabled 14288 | -7/Garrison | Entered Factory 14700 | -7/Factory | System corruption reached 10% 14842 | -7/Factory | Identified exit to Garrison 14842 | -7/Factory | Entered Garrison 14926 | -7/Garrison | Triggered checkpoint 14976 | -7/Garrison | Garrison Relay disabled 15140 | -7/Garrison | Triggered checkpoint 15156 | -7/Garrison | Core integrity fell below 50% 15159 | -7/Garrison | Triggered checkpoint 15361 | -7/Garrison | Lost 3 parts (1p2n) 15542 | -7/Garrison | Triggered checkpoint 15570 | -7/Garrison | Discovered new exit (range 13) 15684 | -7/Garrison | Triggered checkpoint 15788 | -7/Garrison | Discovered new exit (range 12) 15833 | -7/Garrison | Phase Generator disabled 15896 | -7/Garrison | Garrison Relay disabled 15966 | -7/Garrison | Triggered checkpoint 16013 | -7/Garrison | Expanded RIF knowledge: Threat Obfuscation 16123 | -7/Garrison | Entered Factory 16123 | -6/Factory | Accompanied by 1 ally 16123 | -6/Factory | Evolved 2 slots: Utility x2 16349 | -6/Factory | Identified exit to Garrison 16365 | -6/Factory | Entered Garrison 16365 | -6/Garrison | Accompanied by 1 ally 16639 | -6/Garrison | Triggered checkpoint 16682 | -6/Garrison | Garrison Relay disabled 16747 | -6/Garrison | Triggered checkpoint 16776 | -6/Garrison | Triggered checkpoint 17169 | -6/Garrison | Triggered checkpoint 17273 | -6/Garrison | Learned Factory security intel 17319 | -6/Garrison | Triggered checkpoint 17335 | -6/Garrison | Garrison Relay disabled 17431 | -6/Garrison | Garrison Relay disabled 17477 | -6/Garrison | Discovered new exit (range 3) 17491 | -6/Garrison | Expanded RIF knowledge: Patrol Navigation 17581 | -6/Garrison | Entered Factory 17588 | -6/Factory | Lost 3 allies 17782 | -6/Factory | Build established: Botlord-Mutant 18137 | -6/Factory | Garrison activated, responded to threat 18190 | -6/Factory | Fabricated System Restoration Module? 18389 | -6/Factory | Discovered new exit (range 8) 18427 | -6/Factory | Identified exit to Garrison 18427 | -6/Factory | Entered Garrison 18677 | -6/Garrison | Rewired Striker 18683 | -6/Garrison | Rewired Striker 18779 | -6/Garrison | Garrison Relay disabled 18943 | -6/Garrison | Triggered checkpoint 18961 | -6/Garrison | Triggered checkpoint 19047 | -6/Garrison | Triggered checkpoint 19148 | -6/Garrison | Found embedded Infiltrators 19278 | -6/Garrison | Discovered new exit (range 12) 19318 | -6/Garrison | Garrison Relay disabled 19471 | -6/Garrison | Triggered checkpoint 19498 | -6/Garrison | Garrison Relay disabled 19507 | -6/Garrison | Triggered checkpoint 19721 | -6/Garrison | Triggered checkpoint 19729 | -6/Garrison | Garrison Relay disabled 19802 | -6/Garrison | Garrison Relay disabled 19825 | -6/Garrison | Triggered checkpoint 20025 | -6/Garrison | Discovered new exit (range 9) 20040 | -6/Garrison | Spotted B-86 Titan 20081 | -6/Garrison | Allies destroyed B-86 Titan 20088 | -6/Garrison | Rewired B-90 Cyclops 20089 | -6/Garrison | Spotted B-75 Beast 20108 | -6/Garrison | Lost 4 allies 20119 | -6/Garrison | Allies destroyed B-75 Beast 20219 | -6/Garrison | Spotted B-75 Beast 20233 | -6/Garrison | Allies destroyed B-75 Beast 20331 | -6/Garrison | Discovered new exit (range 5) 20359 | -6/Garrison | Triggered checkpoint 20492 | -6/Garrison | Expanded RIF knowledge: Autooverride 20500 | -6/Garrison | Garrison Relay disabled 20614 | -6/Garrison | Entered Factory 20614 | -5/Factory | Accompanied by 9 allies 20614 | -5/Factory | Evolved 2 slots: Utility x2 20713 | -5/Factory | Repaired Mak. Hammer 20914 | -5/Factory | First assault squad dispatched 21044 | -5/Factory | Garrison activated, responded to threat 21096 | -5/Factory | Lost 4 allies 21165 | -5/Factory | Identified exit to Garrison 21176 | -5/Factory | Entered Garrison 21242 | -5/Garrison | Phase Generator disabled 21292 | -5/Garrison | Spotted B-75 Beast 21362 | -5/Garrison | Triggered checkpoint 21408 | -5/Garrison | Lost 4 allies 21606 | -5/Garrison | Garrison Relay disabled 21882 | -5/Garrison | Triggered checkpoint 21950 | -5/Garrison | Heavy support dispatched to Factory 22069 | -5/Garrison | Triggered checkpoint 22097 | -5/Garrison | Triggered checkpoint 22150 | -5/Garrison | Lost 3 allies 22198 | -5/Garrison | Heavy support dispatched to Factory 22344 | -5/Garrison | Heavy support dispatched to Factory 22474 | -5/Garrison | Heavy support dispatched to Factory 22783 | -5/Garrison | Build established: Bothacker-Mutant 22812 | -5/Garrison | Heavy support dispatched to Factory 22845 | -5/Garrison | Destroyed B-75 Beast 22930 | -5/Garrison | Triggered checkpoint 22961 | -5/Garrison | Garrison Relay disabled 23283 | -5/Garrison | Build established: Botlord-Mutant 23301 | -5/Garrison | Expanded RIF knowledge: Autoassimilate 23321 | -5/Garrison | Discovered new exit (range 14) 23416 | -5/Garrison | Triggered checkpoint 23428 | -5/Garrison | Garrison Relay disabled 23590 | -5/Garrison | Discovered new exit (range 14) 23660 | -5/Garrison | Found Relay Coupler [Proto] 23666 | -5/Garrison | Found Relay Coupler [Proto] 23669 | -5/Garrison | Lost 4 parts (2n1u1w) 23669 | -5/Garrison | Found Relay Coupler [Proto] 23718 | -5/Garrison | Entered Factory 23718 | -4/Factory | Evolved 2 slots: Propulsion x1, Utility x1 25139 | -4/Factory | Identified exit to Garrison 25139 | -4/Factory | Entered Garrison 25139 | -4/Garrison | Accompanied by 1 ally 25223 | -4/Garrison | Lost 3 parts (1n1u1w) 25283 | -4/Garrison | Expanded RIF knowledge: Zone Cloak 25348 | -4/Garrison | Triggered checkpoint 25388 | -4/Garrison | Garrison Relay disabled 25437 | -4/Garrison | Triggered checkpoint 25499 | -4/Garrison | Lost 4 parts (1p2n1u) 25609 | -4/Garrison | Triggered checkpoint 25612 | -4/Garrison | Triggered checkpoint 25691 | -4/Garrison | Spotted B-86 Titan 25747 | -4/Garrison | Assimilated B-86 Titan with FLK Orb 26010 | -4/Garrison | Discovered new exit (range 10) 26145 | -4/Garrison | Triggered checkpoint 26467 | -4/Garrison | Triggered checkpoint 26483 | -4/Garrison | Garrison Relay disabled 26540 | -4/Garrison | Discovered new exit (range 14) 27025 | -4/Garrison | Discovered new exit (range 28) 27082 | -4/Garrison | Spotted B-90 Cyclops 27468 | -4/Garrison | Entered Extension 27718 | -4/Extension | First assault squad dispatched 27958 | -4/Extension | Lost 5 allies 27961 | -4/Extension | Lost 3 parts (1u2w) 28179 | -4/Extension | Rescued a captive Derelict 28182 | -4/Extension | Rescued a captive Derelict 28329 | -4/Extension | Rescued a captive Derelict 28776 | -4/Extension | Rescued a captive Derelict 28777 | -4/Extension | Rescued a captive Derelict 28965 | -4/Extension | Crushed by falling debris 28966 | -4/Extension | System corruption reached 10% 28999 | -4/Extension | Rescued a captive Derelict 28999 | -4/Extension | Rescued a captive Derelict 29023 | -4/Extension | Rescued a captive Derelict 29024 | -4/Extension | Rescued a captive Derelict 29604 | -4/Extension | Discovered new exit (range 10) 29605 | -4/Extension | Discovered new exit (range 6) 29740 | -4/Extension | Spotted B-86 Titan 29745 | -4/Extension | Allies destroyed B-86 Titan 29781 | -4/Extension | Spotted B-86 Titan 29783 | -4/Extension | Allies destroyed B-86 Titan 29814 | -4/Extension | Discovered new exit (range 3) 29943 | -4/Extension | Disrupted transfer network 29975 | -4/Extension | Rescued A7 30115 | -4/Extension | Lost 7 allies 30183 | -4/Extension | Entered Research 30183 | -3/Research | Accompanied by 2 allies (A7) 30183 | -3/Research | Evolved 2 slots: Power x1, Weapon x1 30438 | -3/Research | Lost 4 parts (1p1n1u1w) 30610 | -3/Research | Lost 8 parts (4n2u2w) 30628 | -3/Research | Identified exit to Garrison 30628 | -3/Research | Entered Garrison 30856 | -3/Garrison | Build established: Mutant 32162 | -3/Garrison | Triggered checkpoint 32194 | -3/Garrison | Discovered new exit (range 8) 32197 | -3/Garrison | Entered Research 32197 | -2/Research | Evolved 2 slots: Utility x2 32213 | -2/Research | Lost 4 allies 32221 | -2/Research | Lost 5 parts (1p1n2u1w) 32574 | -2/Research | Discovered new exit (range 11) 32578 | -2/Research | Entered Access 32578 | -1/Access | Evolved 2 slots: Utility x2 32593 | -1/Access | Lost 9 parts (1p4n2u2w) 32819 | -1/Access | Garrison activated, responded to threat 33189 | -1/Access | Lost 6 parts (2p2n1u1w) 33667 | -1/Access | Lost 6 parts (3n2u1w) 33844 | -1/Access | Discovered new exit (range 8) 33846 | -1/Access | Spotted B-99 Colossus 33847 | -1/Access | Spotted B-99 Colossus 33849 | *** | Escaped! Last Messages --------------- 33691_ R-10 Processor collects Sml. Battery. 33696_ Connecting with Terminal... 33726_ System corrupted: Energy discharge (-66). 33729_ Acquired 10 matter. 33731_ Acquired Enh. Quantum Rifle. 33737_ Acquired 10 matter. 33738_ Acquired Unknown Ballistic Cannon. 33740_ Identified Linear Accelerator. 33741_ Acquired 10 matter. 33785_ System corrupted: Matter fused (-6). 33814_ U-05 Engineer builds a Wall. 33844_ The Access Shell folds into the floor. 33844_ EXIT=FOUND Sealed Heavy Doors opened remotely. 33847_ Penetrated by Slug. 33847_ Slug penetrates Terminal. 33847_ Penetrated by Slug. 33847_ Relay Coupler [Hunter] destroyed. [Achievement: 40k Club] [Achievement: Epsilon Run] Map ----- +----------------------------------------------------+ | ??????????????????????# ###+#############+##### | | ??????????????????????# " # | | ??????????????????????# # # * | | ??????????????????????# # """" # | | ??????????????????????# ?# ""R"" # | | ??????????????????????# ?# "" "" # """"" | | ??????????????????????+ ??# #"""""""" | | ??????????????????????# ??# #"""""""" | | ??????????????????????# ???# # """"" | | ??????????????????????# ???########### | | ?????????????????????? ????????## | | ????????????????????? ???????# | | ???????????????????# #??????# | | ???????????????????# #??????#"########### | | ???????????????????# BB BB #??????# #????# | | ???????????????????# BB BB #??????# #????# % | | ???????????????????# #?############# | | ???????????????????# #?# ## | | ???????????????????# #?# ## | | ???????????????????# #?# ## ! | | ???????????????????# #?# ## | | ???????????????????# #?# ##[ | | ???????????????????# #?# ## | | ???????????????????# #?# ####+## | | ???????????????????# "" #?# + | | ???????????????????# "@ #?# # | | ???????????????????# #?# ####### | | ???????????????????# #?# ####### | | ???????????????????# ### ## " | | ????#####+#???????## ##" ## "" | | ????? ####????# %% ;# ## """ | | ?????? #????##"" ### ## " | | ??????# #?????#"" #?############# | | ####### #?????#"" #?????????????# | | # ^ #?????#T #?????????????# | | # ^ #?????#"" #?????????????? | | # #?????#"" #???????????????? | | # #######"" t###################+ | | [ /% | | %# ! | | # ###################### ########+######+ | | | ## #??##############????# # #?? ? | | !## #??# #????# #! # ?? | | ## #??# #????# # # ???? | | ## #??# #????# # !! #????? | | !=## #??# ?"""" ###### # !! #????? | | |%/%= #??# """"" / + !! #????? | | ########[ #??# """"" ###### # #????? | | ########+###### """"" #????# # #????? | | # """"" #????# ################ | +----------------------------------------------------+ Best States ------------- Heat Dissipation 74 Coolant Potential 100 Energy Generation 34 Energy Capacity 350 Matter Stores 300 Matter Capacity 300 Sight Range 16 Terrain Scan Density 10 ECM Strength 1 Corruption Containment 12 Armor Coverage 450 Resistance: KI 25 Core Shielding 30 Phase Shifting 10 Evasion (%) 69 Targeting Accuracy 16 Target Analysis 12 Recoil Reduction 2 Offensive Hacking 10 Relay Coupler Types 6 Relay Coupler Value 174 Item Schematics ----------------- Grenade Launcher | -8/Materials | Scanalyzed Arm. Wheel | -8/Materials | Scanalyzed Missile Launcher | -8/Materials | Scanalyzed Imp. Grenade Launcher | -8/Materials | Scanalyzed Mni. Grenade Launcher | -8/Materials | Scanalyzed Seismic Detector | -8/Materials | Scanalyzed Plasma Cutter | -7/Factory | Scanalyzed Hvy. EM Shotgun | -7/Factory | Scanalyzed Arc Projector | -7/Factory | Scanalyzed Adv. Assault Cannon | -7/Factory | Scanalyzed System Restoration Module | -7/Factory | Scanalyzed Hpw. Shock Rifle | -5/Factory | Scanalyzed Mak. Hammer | -5/Factory | Scanalyzed Adv. Plasma Cannon | -5/Factory | Scanalyzed Robot Schematics ------------------ B-48 Gladiator | -7/Factory | Hacked Fabricated ------------ System Restoration Module | x2 | -6/Factory Alien Tech Used ----------------- None Achievements -------------- 40k Club Epsilon Run Pwned Challenges ------------ None Game ------ Seed CobblerGuidanceShotgun Manual? 0 Play Time 05:47:42 Cumulative 135.1 hours Start 2024.10.03 @ 19:37:42 End 2024.10.22 @ 17:43:25 Sessions 15 Manual Loads 0 Difficulty Rogue Special Mode None Game No. 92 Rogue 89 Adventurer 3 Explorer 0 Win Type 0 Total 1 Types 1/0/0/0/0/0/0/0/0 Lore% 49 Gallery% 55 Achievement% 46 Wizard Run 0 Options --------- Layout 0 ASCII 0 Keyboard 1 Movement Vi Keybinds 0 Fullscreen 1 Font 18/SmallcapsGlow Map View 76x50 Zoom Use 0% Tactical HUD 1 Map Filters NONE Filters NONE Steam 1 RUN: 61537db9-79d3-4a5b-8b22-2d77e1ccb582